[Event "V. Korchnoi Memorial 2019"]
[Site "St. Petersburg"]
[Date "2019.08.21"]
[Round "8.6"]
[White "Lintchevski, Daniil"]
[Black "Samusenko, Maksim"]
[Result "1-0"]
[ECO "B07"]
[WhiteElo "2538"]
[BlackElo "2438"]
[Annotator "ChessBase"]
[PlyCount "175"]
[EventDate "2019.08.13"]
[EventType "swiss"]
[EventCountry "RUS"]
[SourceTitle "playchess.com"]
[Source "ChessBase"]
[SourceQuality "1"]
[TimeControl "5400+30"]

1. e4 {[%emt 1:30:30]} d6 {[%emt 1:30:30]} 2. d4 {[%emt 0:00:30]} Nf6 {[%emt 0:00:30]} 3. Nc3 {[%emt 0:00:30]} e5 {[%emt 0:00:30]} 4. dxe5 {[%emt 0:00:30]} dxe5 {[%emt 0:00:30]} 5. Qxd8+ {[%emt 0:00:30]} Kxd8 {[%emt 0:00:30]} 6. Bc4 {[%emt 0:00:30]} Ke8 {[%emt 0:00:30]} 7. Nf3 {[%emt 0:00:30]} Bd6 {[%emt 0:00:30]} 8. Bg5 {[%emt 0:00:30]} Nbd7 {[%emt 0:00:30]} 9. O-O-O {[%emt 0:00:30]} a6 {[%emt 0:00:30]} 10. a4 {[%emt 0:00:30]} h6 {[%emt 0:00:30]} 11. Bh4 {[%emt 0:00:30]} Kf8 {[%emt 0:00:30]} 12. Nd2 {[%emt 0:00:30]} g6 {[%emt 0:00:30]} 13. f3 {[%emt 0:00:30]} Kg7 {[%emt 0:00:30]} 14. Kb1 {[%emt 0:00:30]} Rb8 {[%emt 0:00:30]} 15. Be2 {[%emt 0:00:30]} Re8 {[%emt 0:00:30]} 16. Nc4 {[%emt 0:00:30]} Bb4 {[%emt 0:00:30]} 17. Na2 {[%emt 0:00:30]} Bf8 {[%emt 0:00:30]} 18. a5 {[%emt 0:00:30]} Nh5 {[%emt 0:00:30]} 19. Rhe1 {[%emt 0:00:30]} Nf4 {[%emt 0:00:30]} 20. Bf1 {[%emt 0:00:30]} b5 {[%emt 0:00:30]} 21. Ne3 {[%emt 0:00:30]} c5 {[%emt 0:00:30]} 22. Nc3 {[%emt 0:00:30]} c4 {[%emt 0:00:30]} 23. Ncd5 {[%emt 0:00:30]} Ne6 {[%emt 0:00:30]} 24. Ng4 {[%emt 0:00:30]} Ng5 {[%emt 0:00:30]} 25. Bg3 {[%emt 0:00:30]} Rb7 {[%emt 0:00:30]} 26. h4 {[%emt 0:00:30]} Nh7 {[%emt 0:00:30]} 27. h5 {[%emt 0:00:30]} Bc5 {[%emt 0:00:30]} 28. hxg6 {[%emt 0:00:30]} fxg6 {[%emt 0:00:30]} 29. Bf2 {[%emt 0:00:30]} Bf8 {[%emt 0:00:30]} 30. Be3 {[%emt 0:00:30]} h5 {[%emt 0:00:30]} 31. Bh6+ {[%emt 0:00:30]} Kf7 {[%emt 0:00:30]} 32. Bxf8 {[%emt 0:00:30]} Nhxf8 {[%emt 0:00:30]} 33. Nge3 {[%emt 0:00:30]} Nc5 {[%emt 0:00:30]} 34. g3 {[%emt 0:00:30]} Rd8 {[%emt 0:00:30]} 35. Bg2 {[%emt 0:00:30]} Rbd7 {[%emt 0:00:30]} 36. f4 {[%emt 0:00:30]} exf4 {[%emt 0:00:30]} 37. gxf4 {[%emt 0:00:30]} Re8 {[%emt 0:00:30]} 38. e5 {[%emt 0:00:30]} Bb7 {[%emt 0:00:30]} 39. Bh3 {[%emt 0:00:30]} Rdd8 {[%emt 0:00:30]} 40. Nf6 {[%emt 0:00:30]} Rxd1+ {[%emt 0:00:30]} 41. Rxd1 {[%emt 0:00:30]} Re7 {[%emt 0:00:30]} 42. Rd6 {[%emt 0:00:30]} Rc7 {[%emt 0:00:30]} 43. Ned5 {[%emt 0:00:30]} Rc6 {[%emt 0:00:30]} 44. e6+ {[%emt 0:00:30]} Nfxe6 {[%emt 0:00:30]} 45. Bxe6+ {[%emt 0:00:30]} Kg7 {[%emt 0:00:30]} 46. Rxc6 {[%emt 0:00:30]} Bxc6 47. Bh3 {[%emt 0:00:30]} Nb7 {[%emt 0:01:00]} 48. Kc1 {[%emt 0:00:30]} Nxa5 {[%emt 0:00:30]} 49. Kd2 Nb7 {[%emt 0:00:30]} 50. Ke3 {[%emt 0:01:00]} a5 {[%emt 0:00:30]} 51. Kd4 {[%emt 0:00:30]} Nd6 {[%emt 0:00:30]} 52. c3 {[%emt 0:00:30]} b4 {[%emt 0:00:30]} 53. cxb4 {[%emt 0:00:30]} axb4 54. Nxb4 {[%emt 0:00:30]} Kxf6 {[%emt 0:01:00]} 55. Nxc6 {[%emt 0:00:30]} g5 {[%emt 0:00:30]} 56. fxg5+ {[%emt 0:00:30]} Kxg5 {[%emt 0:00:30]} 57. Ne5 {[%emt 0:00:30]} c3 {[%emt 0:00:30]} 58. Kxc3 {[%emt 0:00:30]} Kf4 {[%emt 0:00:30]} 59. Nc4 {[%emt 0:00:30]} Nb5+ {[%emt 0:00:30]} 60. Kd3 {[%emt 0:00:30]} h4 {[%emt 0:00:30]} 61. Bd7 {[%emt 0:00:30]} Nc7 {[%emt 0:00:30]} 62. b4 {[%emt 0:00:30]} Na6 {[%emt 0:00:30]} 63. Kc3 Kg3 {[%emt 0:00:30]} 64. b5 {[%emt 0:01:00]} Nc7 {[%emt 0:00:30]} 65. Kd2 {[%emt 0:00:30]} Nxb5 {[%emt 0:00:30]} 66. Bxb5 {[%emt 0:00:30]} h3 {[%emt 0:00:30]} 67. Ke2 {[%emt 0:00:30]} Kg2 {[%emt 0:00:30]} 68. Bc6+ {[%emt 0:00:30]} Kg1 {[%emt 0:00:30]} 69. Ne5 {[%emt 0:00:30]} h2 {[%emt 0:00:30]} 70. Nf3+ {[%emt 0:00:30]} Kg2 {[%emt 0:00:30]} 71. Ng5+ {[%emt 0:00:30]} Kg3 {[%emt 0:00:30]} 72. Bh1 {[%emt 0:00:30]} Kf4 {[%emt 0:00:30]} 73. Nf3 {[%emt 0:00:30]} Kg3 {[%emt 0:00:30]} 74. Ke3 {[%emt 0:00:30]} Kg4 {[%emt 0:00:30]} 75. Nxh2+ {[%emt 0:00:30]} Kf5 {[%emt 0:00:30]} 76. Be4+ {[%emt 0:00:30]} Kg5 {[%emt 0:00:30]} 77. Nf3+ {[%emt 0:00:30]} Kg4 {[%emt 0:00:30]} 78. Bg6 {[%emt 0:00:30]} Kg3 {[%emt 0:00:30]} 79. Bf5 {[%emt 0:00:30]} Kg2 {[%emt 0:00:30]} 80. Kf4 {[%emt 0:00:30]} Kf2 {[%emt 0:00:30]} 81. Bd3 {[%emt 0:00:30]} Kg2 {[%emt 0:00:30]} 82. Ne1+ {[%emt 0:00:30]} Kf2 {[%emt 0:00:30]} 83. Nc2 {[%emt 0:00:30]} Kg2 {[%emt 0:00:30]} 84. Be2 {[%emt 0:00:30]} Kh3 {[%emt 0:00:30]} 85. Ne3 {[%emt 0:00:30]} Kh4 {[%emt 0:00:30]} 86. Nf5+ {[%emt 0:00:30]} Kh3 {[%emt 0:00:30]} 87. Kf3 {[%emt 0:00:30]} Kh2 {[%emt 0:00:30]} 88. Bf1 {[%emt 0:00:30]} 1-0

[Event "V. Korchnoi Memorial 2019"]
[Site "St. Petersburg"]
[Date "2019.08.21"]
[Round "8.7"]
[White "Sichinava, Zviad"]
[Black "Sorokin, Aleksey"]
[Result "1-0"]
[ECO "D85"]
[WhiteElo "2257"]
[BlackElo "2537"]
[Annotator "ChessBase"]
[PlyCount "83"]
[EventDate "2019.08.13"]
[EventType "swiss"]
[EventCountry "RUS"]
[SourceTitle "playchess.com"]
[Source "ChessBase"]
[SourceQuality "1"]
[TimeControl "5400+30"]

1. d4 {[%emt 0:00:00]} Nf6 {[%emt 0:00:00]} 2. c4 {[%emt 0:00:00]} g6 {[%emt 0:00:26]} 3. Nc3 {[%emt 0:00:51]} d5 {[%emt 0:00:13]} 4. cxd5 {[%emt 0:00:35]} Nxd5 {[%emt 0:00:10]} 5. Qa4+ {[%emt 0:00:35]} Nc6 {[%emt 0:07:17]} 6. Nf3 {[%emt 0:00:11]} Bg7 {[%emt 0:02:57]} 7. e4 {[%emt 0:00:11]} Nb6 {[%emt 0:02:25]} 8. Qc2 {[%emt 0:00:05]} e5 {[%emt 0:27:43]} 9. d5 {[%emt 0:03:07]} Nd4 {[%emt 0:03:00]} 10. Nxd4 {[%emt 0:01:15]} exd4 {[%emt 0:00:07]} 11. Nb5 {[%emt 0:08:46]} c6 {[%emt 0:00:46]} 12. dxc6 {[%emt 0:00:05]} O-O {[%emt 0:00:19]} 13. c7 {[%emt 0:23:20]} Qf6 {[%emt 0:02:02]} 14. f4 {[%emt 0:01:50]} Qh4+ {[%emt 0:11:44]} 15. g3 {[%emt 0:00:45]} Qe7 {[%emt 0:00:18]} 16. e5 {[%emt 0:22:14]} Bd7 {[%emt 0:03:54]} 17. Nxd4 {[%emt 0:07:35]} f6 {[%emt 0:00:21]} 18. Qb3+ {[%emt 0:02:21]} Rf7 {[%emt 0:07:15]} 19. e6 {[%emt 0:00:04]} Ba4 {[%emt 0:04:07]} 20. Qe3 {[%emt 0:04:08]} Rff8 {[%emt 0:00:12]} 21. f5 {[%emt 0:00:11]} Qxc7 {[%emt 0:03:03]} 22. Bg2 {[%emt 0:03:05]} Nc4 {[%emt 0:03:02]} 23. Qc3 {[%emt 0:02:30]} Rfd8 {[%emt 0:02:00]} 24. b3 {[%emt 0:04:08]} Qb6 {[%emt 0:04:47]} 25. bxc4 {[%emt 0:05:21]} Qxd4 {[%emt 0:01:26]} 26. Qxd4 {[%emt 0:00:28]} Rxd4 {[%emt 0:00:03]} 27. Bxb7 {[%emt 0:00:32]} Rad8 {[%emt 0:00:50]} 28. e7 {[%emt 0:03:40]} Re8 {[%emt 0:00:44]} 29. Bd5+ {[%emt 0:00:06]} Rxd5 {[%emt 0:00:55]} 30. cxd5 {[%emt 0:00:05]} Rxe7+ {[%emt 0:00:03]} 31. Kf2 {[%emt 0:00:43]} Rd7 {[%emt 0:00:15]} 32. Rb1 {[%emt 0:01:08]} gxf5 {[%emt 0:00:17]} 33. Rb4 {[%emt 0:02:30]} Bc2 {[%emt 0:00:11]} 34. Rd4 {[%emt 0:00:14]} Bf8 {[%emt 0:00:43]} 35. Be3 {[%emt 0:00:11]} Bc5 {[%emt 0:01:16]} 36. Rc4 {[%emt 0:01:15]} Bxe3+ {[%emt 0:00:15]} 37. Kxe3 {[%emt 0:00:03]} Be4 {[%emt 0:00:04]} 38. Rd1 {[%emt 0:00:11]} Bxd5 {[%emt 0:00:15]} 39. Rc8+ {[%emt 0:00:23]} Kf7 {[%emt 0:00:32]} 40. Kf4 {[%emt 0:00:04]} Ke6 {[%emt 0:00:20]} 41. Rc5 {[%emt 0:01:08]} a6 {[%emt 0:01:19]} 42. Ra5 {[%emt 0:00:53]} 1-0

[Event "V. Korchnoi Memorial 2019"]
[Site "St. Petersburg"]
[Date "2019.08.21"]
[Round "8.8"]
[White "Gubajdullin, Alexei"]
[Black "Hamitevici, Vladimir"]
[Result "0-1"]
[ECO "A46"]
[WhiteElo "2331"]
[BlackElo "2480"]
[Annotator "ChessBase"]
[PlyCount "98"]
[EventDate "2019.08.13"]
[EventType "swiss"]
[EventCountry "RUS"]
[SourceTitle "playchess.com"]
[Source "ChessBase"]
[SourceQuality "1"]
[TimeControl "5400+30"]

1. d4 {[%emt 0:00:00]} c5 {[%emt 0:03:03]} 2. c3 {[%emt 0:00:32]} Nf6 {[%emt 0:00:31]} 3. Nf3 {[%emt 0:00:10]} g6 {[%emt 0:03:17]} 4. dxc5 {[%emt 0:05:23]} Bg7 {[%emt 0:00:43]} 5. Bf4 {[%emt 0:02:46]} O-O {[%emt 0:05:38]} 6. Nbd2 {[%emt 0:02:42]} Nc6 {[%emt 0:04:42]} 7. e4 {[%emt 0:02:12]} b6 {[%emt 0:04:07]} 8. cxb6 {[%emt 0:01:39]} Qxb6 {[%emt 0:00:01]} 9. Nc4 {[%emt 0:01:36]} Qc5 {[%emt 0:07:08]} 10. b4 {[%emt 0:25:43]} Qh5 {[%emt 0:00:13]} 11. e5 {[%emt 0:08:29]} Ne4 {[%emt 0:06:16]} 12. Qd3 {[%emt 0:27:17]} Qf5 {[%emt 0:03:50]} 13. g3 {[%emt 0:03:42]} Ba6 {[%emt 0:01:12]} 14. Nh4 {[%emt 0:07:02]} Qe6 {[%emt 0:01:40]} 15. Qxe4 {[%emt 0:00:11]} d5 {[%emt 0:00:09]} 16. Qe3 {[%emt 0:00:42]} dxc4 {[%emt 0:04:55]} 17. Nf3 {[%emt 0:00:56]} f6 {[%emt 0:06:29]} 18. Bg2 {[%emt 0:02:14]} g5 {[%emt 0:02:48]} 19. Qc5 {[%emt 0:03:39]} gxf4 {[%emt 0:03:59]} 20. b5 {[%emt 0:01:00]} Bb7 {[%emt 0:04:16]} 21. bxc6 {[%emt 0:00:48]} Qxc6 {[%emt 0:00:07]} 22. Qxc6 {[%emt 0:01:03]} Bxc6 {[%emt 0:00:02]} 23. e6 {[%emt 0:00:51]} f5 {[%emt 0:00:31]} 24. Rc1 {[%emt 0:00:26]} Rad8 {[%emt 0:03:25]} 25. O-O {[%emt 0:00:26]} Rd3 {[%emt 0:00:14]} 26. Ne1 {[%emt 0:00:45]} f3 {[%emt 0:01:30]} 27. Bh1 {[%emt 0:00:26]} Rfd8 {[%emt 0:03:45]} 28. Nxd3 {[%emt 0:00:26]} cxd3 {[%emt 0:00:06]} 29. c4 {[%emt 0:00:39]} d2 {[%emt 0:00:54]} 30. Rcd1 {[%emt 0:00:36]} Bc3 {[%emt 0:01:57]} 31. h3 {[%emt 0:00:27]} h5 {[%emt 0:00:53]} 32. Kh2 {[%emt 0:00:38]} Kg7 {[%emt 0:00:10]} 33. Rb1 {[%emt 0:00:13]} Be4 {[%emt 0:00:53]} 34. Rb3 {[%emt 0:00:13]} d1=Q {[%emt 0:00:46]} 35. Rxd1 {[%emt 0:00:54]} Rxd1 {[%emt 0:00:02]} 36. Rxc3 {[%emt 0:00:27]} Rf1 {[%emt 0:00:05]} 37. g4 {[%emt 0:00:19]} hxg4 {[%emt 0:02:14]} 38. hxg4 {[%emt 0:00:02]} fxg4 {[%emt 0:00:16]} 39. c5 {[%emt 0:00:29]} Bc6 {[%emt 0:02:07]} 40. Rc4 {[%emt 0:00:20]} g3+ {[%emt 0:00:09]} 41. Kxg3 {[%emt 0:00:10]} Rxh1 {[%emt 0:00:07]} 42. Rf4 {[%emt 0:00:02]} Rg1+ {[%emt 0:02:03]} 43. Kh3 {[%emt 0:00:05]} Kh6 {[%emt 0:00:17]} 44. Rh4+ {[%emt 0:01:11]} Kg5 {[%emt 0:00:25]} 45. Rd4 {[%emt 0:00:07]} Kf5 {[%emt 0:00:23]} 46. Rd7 {[%emt 0:00:20]} Bxd7 {[%emt 0:00:24]} 47. exd7 {[%emt 0:00:06]} Rg8 {[%emt 0:00:07]} 48. c6 {[%emt 0:00:24]} Ke6 {[%emt 0:00:05]} 49. c7 {[%emt 0:00:05]} Kxd7 {[%emt 0:00:04]} 0-1

[Event "V. Korchnoi Memorial 2019"]
[Site "St. Petersburg"]
[Date "2019.08.21"]
[Round "8.9"]
[White "Fakhrutdinov, Timur"]
[Black "Ovchinnikov, Vsevolod"]
[Result "1-0"]
[ECO "C16"]
[WhiteElo "2499"]
[BlackElo "2316"]
[Annotator "ChessBase"]
[PlyCount "133"]
[EventDate "2019.08.13"]
[EventType "swiss"]
[EventCountry "RUS"]
[SourceTitle "playchess.com"]
[Source "ChessBase"]
[SourceQuality "1"]
[TimeControl "5400+30"]

1. e4 {[%emt 0:00:00]} e6 {[%emt 0:01:18]} 2. d4 {[%emt 0:00:00]} d5 {[%emt 0:00:13]} 3. Nc3 {[%emt 0:00:00]} Bb4 {[%emt 0:00:11]} 4. e5 {[%emt 0:00:00]} b6 {[%emt 0:00:07]} 5. a3 {[%emt 0:00:16]} Bf8 {[%emt 0:00:07]} 6. Bb5+ {[%emt 0:00:13]} Bd7 {[%emt 0:00:18]} 7. Bd3 {[%emt 0:00:13]} c5 {[%emt 0:00:13]} 8. Nf3 {[%emt 0:00:22]} Nc6 {[%emt 0:01:26]} 9. O-O {[%emt 0:00:07]} a6 {[%emt 0:08:25]} 10. b3 {[%emt 0:00:13]} cxd4 {[%emt 0:16:10]} 11. Ne2 {[%emt 0:00:11]} Qc7 {[%emt 0:00:35]} 12. Bf4 {[%emt 0:02:14]} Nge7 {[%emt 0:01:15]} 13. Nexd4 {[%emt 0:04:44]} Ng6 {[%emt 0:06:37]} 14. Bg3 {[%emt 0:01:17]} Nxd4 {[%emt 0:03:11]} 15. Nxd4 {[%emt 0:00:07]} Bc5 {[%emt 0:01:12]} 16. Nf3 {[%emt 0:10:13]} b5 {[%emt 0:10:40]} 17. Ng5 {[%emt 0:20:59]} Nf8 {[%emt 0:03:52]} 18. Qg4 {[%emt 0:06:07]} Bc6 {[%emt 0:03:34]} 19. Nf3 {[%emt 0:21:21]} g6 {[%emt 0:02:28]} 20. b4 {[%emt 0:01:25]} Bb6 {[%emt 0:02:25]} 21. Bh4 {[%emt 0:03:09]} h6 {[%emt 0:11:57]} 22. Bf6 {[%emt 0:02:13]} Rg8 {[%emt 0:05:05]} 23. Qh4 {[%emt 0:02:14]} Nd7 {[%emt 0:01:34]} 24. Qxh6 {[%emt 0:01:48]} Nxf6 {[%emt 0:00:05]} 25. exf6 {[%emt 0:00:07]} O-O-O {[%emt 0:00:11]} 26. Qg5 {[%emt 0:04:52]} Rh8 {[%emt 0:00:39]} 27. Qe5 {[%emt 0:03:36]} d4 {[%emt 0:04:06]} 28. Rfe1 {[%emt 0:01:16]} Bxf3 {[%emt 0:01:59]} 29. gxf3 {[%emt 0:00:37]} Rd5 {[%emt 0:00:21]} 30. Qxc7+ {[%emt 0:07:06]} Bxc7 {[%emt 0:00:01]} 31. a4 {[%emt 0:01:22]} Bxh2+ {[%emt 0:10:05]} 32. Kf1 {[%emt 0:00:30]} Bd6 {[%emt 0:01:56]} 33. Be4 {[%emt 0:04:22]} Rh1+ {[%emt 0:02:51]} 34. Ke2 {[%emt 0:00:12]} Rxe1+ {[%emt 0:00:04]} 35. Rxe1 {[%emt 0:00:09]} Rh5 {[%emt 0:00:02]} 36. axb5 {[%emt 0:01:27]} Rxb5 {[%emt 0:01:47]} 37. Rh1 {[%emt 0:00:16]} Rh5 {[%emt 0:00:53]} 38. Ra1 {[%emt 0:00:06]} Be5 {[%emt 0:00:26]} 39. Rxa6 {[%emt 0:01:18]} Bxf6 {[%emt 0:00:02]} 40. Ra8+ {[%emt 0:01:10]} Kc7 {[%emt 0:01:03]} 41. Ra7+ {[%emt 0:00:25]} Kd6 {[%emt 0:00:30]} 42. Rxf7 {[%emt 0:01:38]} Be7 {[%emt 0:00:02]} 43. Kd3 {[%emt 0:00:07]} Rb5 {[%emt 0:00:58]} 44. Kc4 {[%emt 0:00:12]} Rb8 {[%emt 0:00:02]} 45. Bxg6 {[%emt 0:01:24]} Bh4 {[%emt 0:00:50]} 46. Be4 {[%emt 0:00:39]} Bxf2 {[%emt 0:00:05]} 47. b5 {[%emt 0:00:12]} Be3 {[%emt 0:00:50]} 48. Bc6 {[%emt 0:00:56]} e5 {[%emt 0:00:42]} 49. Rf6+ {[%emt 0:00:31]} Ke7 {[%emt 0:00:15]} 50. Rg6 {[%emt 0:00:07]} Kf7 {[%emt 0:00:40]} 51. Rd6 {[%emt 0:00:05]} Ke7 {[%emt 0:00:13]} 52. Kd5 {[%emt 0:00:35]} Bf4 {[%emt 0:00:48]} 53. Rd7+ {[%emt 0:00:04]} Kf6 {[%emt 0:00:04]} 54. Bb7 {[%emt 0:01:27]} Rh8 {[%emt 0:01:02]} 55. Kc5 {[%emt 0:00:40]} Be3 {[%emt 0:00:24]} 56. Kc4 {[%emt 0:00:30]} Rh1 {[%emt 0:00:25]} 57. Be4 {[%emt 0:00:32]} Rb1 {[%emt 0:00:27]} 58. Rd6+ {[%emt 0:00:11]} Ke7 {[%emt 0:00:16]} 59. Ra6 {[%emt 0:00:19]} Kd7 {[%emt 0:00:49]} 60. Bd3 {[%emt 0:00:24]} Bg5 {[%emt 0:00:37]} 61. Kd5 {[%emt 0:00:11]} Bf4 {[%emt 0:00:34]} 62. Ra7+ {[%emt 0:00:06]} Ke8 {[%emt 0:00:28]} 63. Kc6 {[%emt 0:00:15]} Kd8 {[%emt 0:00:30]} 64. b6 {[%emt 0:00:56]} Rb2 {[%emt 0:00:33]} 65. Rd7+ {[%emt 0:01:27]} Ke8 {[%emt 0:00:01]} 66. Bg6+ {[%emt 0:00:08]} Kf8 {[%emt 0:00:03]} 67. Be4 {[%emt 0:00:15]} 1-0

[Event "V. Korchnoi Memorial 2019"]
[Site "St. Petersburg"]
[Date "2019.08.22"]
[Round "9.1"]
[White "Kamsky, Gata"]
[Black "Sichinava, Zviad"]
[Result "1-0"]
[ECO "A48"]
[WhiteElo "2673"]
[BlackElo "2257"]
[Annotator "ChessBase"]
[PlyCount "78"]
[EventDate "2019.08.13"]
[EventType "swiss"]
[EventCountry "RUS"]
[SourceTitle "playchess.com"]
[Source "ChessBase"]
[SourceQuality "1"]
[TimeControl "5400+30"]

1. d4 {[%emt 0:00:00]} Nf6 {[%emt 0:00:00]} 2. Nf3 {[%emt 0:00:00]} g6 {[%emt 0:00:22]} 3. Bg5 {[%emt 0:00:00]} Bg7 {[%emt 0:01:16]} 4. c3 {[%emt 0:00:28]} h6 {[%emt 0:00:54]} 5. Bh4 {[%emt 0:00:07]} g5 {[%emt 0:01:35]} 6. Bg3 {[%emt 0:00:07]} d6 {[%emt 0:00:05]} 7. h3 {[%emt 0:03:20]} O-O {[%emt 0:01:58]} 8. Nbd2 {[%emt 0:01:09]} Bf5 {[%emt 0:00:11]} 9. e3 {[%emt 0:00:34]} Nbd7 {[%emt 0:10:44]} 10. Be2 {[%emt 0:02:15]} c5 {[%emt 0:00:33]} 11. O-O {[%emt 0:00:28]} Bg6 {[%emt 0:04:37]} 12. a4 {[%emt 0:02:46]} cxd4 {[%emt 0:02:37]} 13. exd4 {[%emt 0:00:29]} Nh5 {[%emt 0:01:08]} 14. Bh2 {[%emt 0:02:21]} Nf4 {[%emt 0:00:13]} 15. Re1 {[%emt 0:15:12]} Nxe2+ {[%emt 0:08:22]} 16. Qxe2 {[%emt 0:00:06]} Re8 {[%emt 0:05:32]} 17. Qb5 {[%emt 0:18:27]} Qc7 {[%emt 0:02:23]} 18. Rad1 {[%emt 0:10:32]} Qc6 {[%emt 0:04:16]} 19. Qb3 {[%emt 0:08:14]} Nb6 {[%emt 0:01:48]} 20. a5 {[%emt 0:00:13]} Nd5 {[%emt 0:00:06]} 21. c4 {[%emt 0:01:35]} Nf4 {[%emt 0:00:12]} 22. d5 {[%emt 0:04:23]} Qc7 {[%emt 0:04:48]} 23. Bxf4 {[%emt 0:04:40]} gxf4 {[%emt 0:00:05]} 24. Nh4 {[%emt 0:00:09]} Bh5 {[%emt 0:04:08]} 25. Ra1 {[%emt 0:00:30]} Bf6 {[%emt 0:07:22]} 26. Ndf3 {[%emt 0:01:42]} b6 {[%emt 0:15:04]} 27. Re4 {[%emt 0:02:44]} bxa5 {[%emt 0:01:16]} 28. Rxf4 {[%emt 0:01:46]} Reb8 {[%emt 0:00:30]} 29. Qd3 {[%emt 0:03:23]} Bg5 {[%emt 0:09:48]} 30. Nxg5 {[%emt 0:00:30]} hxg5 {[%emt 0:00:30]} 31. Qg3 {[%emt 0:03:19]} f6 {[%emt 0:00:00]} 32. Re4 {[%emt 0:00:50]} a4 {[%emt 0:07:11]} 33. Nf5 {[%emt 0:02:10]} e5 {[%emt 0:00:22]} 34. dxe6 {[%emt 0:00:17]} Bg6 {[%emt 0:00:01]} 35. Qf3 {[%emt 0:02:12]} Rb3 {[%emt 0:01:26]} 36. Re3 {[%emt 0:01:02]} Re8 {[%emt 0:00:10]} 37. Rxb3 {[%emt 0:03:08]} axb3 {[%emt 0:00:05]} 38. Nd4 {[%emt 0:00:44]} Qc5 {[%emt 0:01:42]} 39. Qxf6 {[%emt 0:00:12]} Qe5 {[%emt 0:00:03]} 1-0

[Event "V. Korchnoi Memorial 2019"]
[Site "St. Petersburg"]
[Date "2019.08.22"]
[Round "9.2"]
[White "Zvjaginsev, Vadim"]
[Black "Vokhidov, Shamsiddin"]
[Result "1-0"]
[ECO "E14"]
[WhiteElo "2639"]
[BlackElo "2512"]
[Annotator "ChessBase"]
[PlyCount "73"]
[EventDate "2019.08.13"]
[EventType "swiss"]
[EventCountry "RUS"]
[SourceTitle "playchess.com"]
[Source "ChessBase"]
[SourceQuality "1"]
[TimeControl "5400+30"]

1. d4 {[%emt 0:02:33]} Nf6 {[%emt 0:00:00]} 2. Nf3 {[%emt 0:00:12]} d5 {[%emt 0:00:35]} 3. c4 {[%emt 0:00:09]} e6 {[%emt 0:00:30]} 4. e3 {[%emt 0:00:30]} b6 {[%emt 0:00:30]} 5. Nc3 {[%emt 0:00:30]} Bb7 {[%emt 0:00:30]} 6. cxd5 {[%emt 1:29:06]} exd5 {[%emt 0:09:08]} 7. Bb5+ {[%emt 0:00:00]} c6 {[%emt 0:01:53]} 8. Bd3 {[%emt 0:00:00]} Be7 {[%emt 0:00:30]} 9. O-O {[%emt 0:00:00]} O-O {[%emt 0:00:05]} 10. b3 {[%emt 0:00:00]} Nbd7 {[%emt 0:04:50]} 11. Bb2 {[%emt 0:00:00]} Bd6 {[%emt 0:01:19]} 12. Rc1 {[%emt 0:00:00]} Re8 {[%emt 0:00:25]} 13. Qc2 {[%emt 0:00:00]} Qe7 {[%emt 0:03:22]} 14. Bf5 {[%emt 0:00:00]} g6 {[%emt 0:03:43]} 15. Bh3 {[%emt 0:00:00]} Rad8 {[%emt 0:07:55]} 16. Ne2 {[%emt 0:00:00]} Ne4 {[%emt 0:04:38]} 17. Bxd7 {[%emt 0:00:00]} Rxd7 {[%emt 0:01:53]} 18. Ne5 {[%emt 0:00:00]} Rc7 {[%emt 0:00:17]} 19. f3 {[%emt 0:00:00]} Ng5 {[%emt 0:05:03]} 20. h4 {[%emt 0:00:00]} Ne6 {[%emt 0:04:14]} 21. h5 {[%emt 0:00:00]} Qg5 {[%emt 0:03:31]} 22. f4 {[%emt 0:00:00]} Qxh5 {[%emt 0:00:39]} 23. f5 {[%emt 0:00:00]} Ng7 {[%emt 0:00:36]} 24. fxg6 {[%emt 0:00:00]} hxg6 {[%emt 0:02:20]} 25. Nf4 {[%emt 0:00:00]} Qg5 {[%emt 0:01:51]} 26. Rf3 {[%emt 0:00:00]} Bc8 {[%emt 0:00:33]} 27. Qf2 {[%emt 0:00:00]} Bf5 {[%emt 0:08:24]} 28. Rf1 {[%emt 0:00:00]} Bxe5 {[%emt 0:06:14]} 29. dxe5 {[%emt 0:00:00]} Bg4 {[%emt 0:00:40]} 30. Rg3 {[%emt 0:00:00]} Nf5 {[%emt 0:01:51]} 31. Qf3 {[%emt 0:00:00]} Bxf3 {[%emt 0:03:11]} 32. Rxg5 {[%emt 0:00:00]} Be4 {[%emt 0:00:07]} 33. e6 {[%emt 0:00:00]} Kh7 {[%emt 0:01:46]} 34. Kf2 {[%emt 0:00:00]} fxe6 {[%emt 0:01:34]} 35. Rxf5 {[%emt 0:00:00]} Kg8 {[%emt 0:01:40]} 36. Rh1 {[%emt 0:00:00]} e5 {[%emt 0:01:13]} 37. Rxe5 {[%emt 0:00:00]} 1-0

[Event "V. Korchnoi Memorial 2019"]
[Site "St. Petersburg"]
[Date "2019.08.22"]
[Round "9.3"]
[White "Lobanov, Sergei"]
[Black "Lintchevski, Daniil"]
[Result "1/2-1/2"]
[ECO "B33"]
[WhiteElo "2495"]
[BlackElo "2538"]
[Annotator "ChessBase"]
[PlyCount "81"]
[EventDate "2019.08.13"]
[EventType "swiss"]
[EventCountry "RUS"]
[SourceTitle "playchess.com"]
[Source "ChessBase"]
[SourceQuality "1"]
[TimeControl "5400+30"]

1. e4 {[%emt 0:01:38]} c5 {[%emt 0:00:22]} 2. Nf3 {[%emt 0:00:05]} Nc6 {[%emt 0:00:05]} 3. d4 {[%emt 0:00:04]} cxd4 {[%emt 0:00:07]} 4. Nxd4 {[%emt 0:00:03]} Nf6 {[%emt 0:00:09]} 5. Nc3 {[%emt 0:00:03]} e5 {[%emt 0:00:31]} 6. Ndb5 {[%emt 0:00:06]} d6 {[%emt 0:00:04]} 7. Nd5 {[%emt 0:00:05]} Nxd5 {[%emt 0:00:05]} 8. exd5 {[%emt 0:00:05]} Ne7 {[%emt 0:00:05]} 9. c4 {[%emt 0:00:10]} Ng6 {[%emt 0:00:14]} 10. Qa4 {[%emt 0:00:08]} Bd7 {[%emt 0:00:05]} 11. Qb4 {[%emt 0:00:07]} Qb8 {[%emt 0:00:03]} 12. h4 {[%emt 0:00:10]} h5 {[%emt 0:00:01]} 13. Be2 {[%emt 0:00:05]} a6 {[%emt 0:01:47]} 14. Nc3 {[%emt 0:00:05]} Ne7 {[%emt 0:00:05]} 15. a4 {[%emt 0:07:42]} Nf5 {[%emt 0:10:44]} 16. a5 {[%emt 0:00:06]} Be7 {[%emt 0:01:01]} 17. Na4 {[%emt 0:02:21]} Bxa4 {[%emt 0:01:55]} 18. Qxa4+ {[%emt 0:01:01]} Kf8 {[%emt 0:00:01]} 19. g3 {[%emt 0:01:36]} Nd4 {[%emt 0:03:11]} 20. Bd3 {[%emt 0:04:02]} Qc8 {[%emt 0:07:33]} 21. Be3 {[%emt 0:02:07]} Qg4 {[%emt 0:02:50]} 22. Qd1 {[%emt 0:02:17]} Qd7 {[%emt 0:02:50]} 23. O-O {[%emt 0:02:29]} g6 {[%emt 0:05:29]} 24. Kg2 {[%emt 0:02:29]} Kg7 {[%emt 0:02:00]} 25. Bxd4 {[%emt 0:11:44]} exd4 {[%emt 0:00:05]} 26. b4 {[%emt 0:04:59]} Rac8 {[%emt 0:00:49]} 27. Qf3 {[%emt 0:01:18]} Rc7 {[%emt 0:00:40]} 28. Rfc1 {[%emt 0:04:16]} Rhc8 {[%emt 0:02:55]} 29. Ra2 {[%emt 0:00:09]} Bf6 {[%emt 0:02:34]} 30. Be2 {[%emt 0:01:41]} Qe8 {[%emt 0:04:09]} 31. Qd3 {[%emt 0:00:30]} Kg8 {[%emt 0:02:07]} 32. Bf3 {[%emt 0:00:55]} Bg7 {[%emt 0:02:12]} 33. Rb2 {[%emt 0:05:10]} Qd7 {[%emt 0:07:20]} 34. Rbc2 {[%emt 0:01:33]} Qa4 {[%emt 0:01:45]} 35. Rb1 {[%emt 0:00:51]} Qd7 {[%emt 0:00:48]} 36. Rb3 {[%emt 0:02:33]} Qe7 {[%emt 0:01:26]} 37. Rb1 {[%emt 0:02:43]} Qd7 {[%emt 0:01:25]} 38. Qb3 {[%emt 0:05:26]} Bf8 {[%emt 0:02:27]} 39. Rd1 {[%emt 0:01:38]} Bg7 {[%emt 0:00:05]} 40. Rb1 {[%emt 0:01:00]} Bf8 {[%emt 0:00:07]} 41. Rd1 {[%emt 0:00:36]} 1/2-1/2